[Event "Late-Titled-Tuesday-Blitz-May-07-2024"]
[Site "Chess.com"]
[Date "2024.05.07"]
[Round "2"]
[White "wanyaland"]
[Black "Tibmat"]
[Result "0-1"]
[WhiteElo "2412"]
[BlackElo "2680"]
[TimeControl "180+1"]
[EndTime "14:16:24 PDT"]
[Termination "Tibmat won by resignation"]

1. d4 {[%clk 0:02:58.5]} 1... Nf6 {[%clk 0:02:58.6]} 2. c4 {[%clk 0:02:58.3]}
2... e6 {[%clk 0:02:58.9]} 3. g3 {[%clk 0:02:57.7]} 3... Bb4+ {[%clk 0:02:58.5]}
4. Nd2 {[%clk 0:02:57.2]} 4... c5 {[%clk 0:02:56.6]} 5. a3 {[%clk 0:02:57.1]}
5... Bxd2+ {[%clk 0:02:56]} 6. Qxd2 {[%clk 0:02:57.1]} 6... cxd4 {[%clk
0:02:55.8]} 7. Nf3 {[%clk 0:02:55.3]} 7... b6 {[%clk 0:02:44.6]} 8. Bg2 {[%clk
0:02:53.1]} 8... Bb7 {[%clk 0:02:45]} 9. O-O {[%clk 0:02:52.2]} 9... O-O {[%clk
0:02:42.3]} 10. Qxd4 {[%clk 0:02:48.6]} 10... Nc6 {[%clk 0:02:41.7]} 11. Qh4
{[%clk 0:02:49.5]} 11... Na5 {[%clk 0:02:40.9]} 12. Bg5 {[%clk 0:02:43.7]} 12...
h6 {[%clk 0:02:40.2]} 13. Bxf6 {[%clk 0:02:42.6]} 13... Qxf6 {[%clk 0:02:41.1]}
14. Qxf6 {[%clk 0:02:42.8]} 14... gxf6 {[%clk 0:02:42]} 15. Rac1 {[%clk
0:02:39.8]} 15... Rac8 {[%clk 0:02:41.1]} 16. Rfd1 {[%clk 0:02:37.1]} 16... Rfd8
{[%clk 0:02:40]} 17. Nd2 {[%clk 0:02:36.4]} 17... Bxg2 {[%clk 0:02:36.9]} 18.
Kxg2 {[%clk 0:02:37.3]} 18... Kf8 {[%clk 0:02:36.9]} 19. b4 {[%clk 0:02:36.6]}
19... Nc6 {[%clk 0:02:37.4]} 20. Ne4 {[%clk 0:02:36.3]} 20... Ke7 {[%clk
0:02:36.3]} 21. Nd6 {[%clk 0:02:34.8]} 21... Rb8 {[%clk 0:02:34.3]} 22. f4
{[%clk 0:02:34.8]} 22... Rg8 {[%clk 0:02:25.6]} 23. Kf3 {[%clk 0:02:33.9]} 23...
Nd8 {[%clk 0:02:23.9]} 24. e4 {[%clk 0:02:32.8]} 24... Nb7 {[%clk 0:02:24.1]}
25. Nb5 {[%clk 0:02:27.4]} 25... a6 {[%clk 0:02:19.4]} 26. Nc7 {[%clk
0:02:22.4]} 26... a5 {[%clk 0:02:19.6]} 27. Nb5 {[%clk 0:02:18.6]} 27... Rgc8
{[%clk 0:02:14.7]} 28. Ke3 {[%clk 0:02:06.5]} 28... axb4 {[%clk 0:02:13.1]} 29.
axb4 {[%clk 0:02:07.1]} 29... Ra8 {[%clk 0:02:13.9]} 30. Rd2 {[%clk 0:02:00.9]}
30... Ra4 {[%clk 0:02:11.4]} 31. Rb2 {[%clk 0:02:00.6]} 31... d5 {[%clk
0:02:03.3]} 32. exd5 {[%clk 0:02:00]} 32... exd5 {[%clk 0:02:02.4]} 33. Kd4
{[%clk 0:01:56.2]} 33... dxc4 {[%clk 0:01:55.6]} 34. Rxc4 {[%clk 0:01:55.1]}
34... Rd8+ {[%clk 0:01:37.9]} 35. Ke3 {[%clk 0:01:54.5]} 35... Rd7 {[%clk
0:01:36.9]} 36. Kf3 {[%clk 0:01:53.5]} 36... h5 {[%clk 0:01:34.2]} 37. Re2+
{[%clk 0:01:52]} 37... Kf8 {[%clk 0:01:32.7]} 38. Kg2 {[%clk 0:01:46.8]} 38...
Kg7 {[%clk 0:01:31.4]} 39. Kh3 {[%clk 0:01:46.2]} 39... Na5 {[%clk 0:01:23.4]}
40. Rce4 {[%clk 0:01:39.6]} 40... Nc6 {[%clk 0:01:23.9]} 41. Rb2 {[%clk
0:01:35.7]} 41... f5 {[%clk 0:01:21]} 42. Rc4 {[%clk 0:01:35]} 42... Ne7 {[%clk
0:01:14.5]} 43. Kh4 {[%clk 0:01:30.5]} 43... Kg6 {[%clk 0:01:09.8]} 44. Nd4
{[%clk 0:01:23.3]} 44... Nd5 {[%clk 0:01:02.5]} 45. Nc6 {[%clk 0:01:19.5]} 45...
f6 {[%clk 0:00:57.7]} 46. Re4 {[%clk 0:01:15.7]} 46... fxe4 {[%clk 0:00:57.2]}
0-1

[Event "Late-Titled-Tuesday-Blitz-May-07-2024"]
[Site "Chess.com"]
[Date "2024.05.07"]
[Round "2"]
[White "MaiqMaster"]
[Black "Alina_Gumerovna"]
[Result "1-0"]
[WhiteElo "2493"]
[BlackElo "2177"]
[TimeControl "180+1"]
[EndTime "14:16:25 PDT"]
[Termination "MaiqMaster won on time"]

1. e4 {[%clk 0:03:00.9]} 1... e5 {[%clk 0:02:59.4]} 2. Nf3 {[%clk 0:03:00.3]}
2... Nf6 {[%clk 0:02:59.6]} 3. Nxe5 {[%clk 0:02:58]} 3... d6 {[%clk 0:02:59.7]}
4. Nf3 {[%clk 0:02:57.9]} 4... Nxe4 {[%clk 0:02:59.6]} 5. d4 {[%clk 0:02:57.4]}
5... d5 {[%clk 0:02:59.9]} 6. Bd3 {[%clk 0:02:55.9]} 6... Bd6 {[%clk 0:03:00.2]}
7. O-O {[%clk 0:02:55.6]} 7... O-O {[%clk 0:03:00.1]} 8. c4 {[%clk 0:02:56.2]}
8... c6 {[%clk 0:02:59.8]} 9. Nc3 {[%clk 0:02:56.1]} 9... Nxc3 {[%clk
0:02:59.1]} 10. bxc3 {[%clk 0:02:57]} 10... Bg4 {[%clk 0:02:57.8]} 11. h3 {[%clk
0:02:56]} 11... Bh5 {[%clk 0:02:55.6]} 12. Rb1 {[%clk 0:02:49.1]} 12... dxc4
{[%clk 0:02:55.3]} 13. Bxc4 {[%clk 0:02:48]} 13... Nd7 {[%clk 0:02:46]} 14. a4
{[%clk 0:02:39.2]} 14... b6 {[%clk 0:02:30.3]} 15. Bd3 {[%clk 0:02:29.5]} 15...
f5 {[%clk 0:01:53.9]} 16. Re1 {[%clk 0:02:20.3]} 16... c5 {[%clk 0:01:30.3]} 17.
Qb3+ {[%clk 0:02:17.7]} 17... Kh8 {[%clk 0:00:58.8]} 18. Bg5 {[%clk 0:02:12.8]}
18... Qc7 {[%clk 0:00:49.1]} 19. Nd2 {[%clk 0:02:07.9]} 19... h6 {[%clk
0:00:36.2]} 20. Be7 {[%clk 0:02:02.4]} 20... Bxe7 {[%clk 0:00:10.2]} 21. Rxe7
{[%clk 0:02:03.3]} 21... Qd6 {[%clk 0:00:09.9]} 22. Re6 {[%clk 0:01:45.7]} 22...
Qc7 {[%clk 0:00:07.9]} 23. Bc4 {[%clk 0:01:41]} 23... Bf7 {[%clk 0:00:05.8]} 24.
Re7 {[%clk 0:01:40.8]} 24... Bxc4 {[%clk 0:00:05.6]} 25. Nxc4 {[%clk 0:01:41.7]}
25... Rae8 {[%clk 0:00:04.7]} 26. Rbe1 {[%clk 0:01:41.2]} 26... Rxe7 {[%clk
0:00:04.4]} 27. Rxe7 {[%clk 0:01:42.1]} 27... Qd8 {[%clk 0:00:02.7]} 28. Re6
{[%clk 0:01:25.5]} 28... cxd4 {[%clk 0:00:02.7]} 29. cxd4 {[%clk 0:01:24.2]}
29... Nf6 {[%clk 0:00:02.3]} 30. Ne5 {[%clk 0:01:21.1]} 30... Qxd4 {[%clk
0:00:01.1]} 31. Ng6+ {[%clk 0:01:21]} 1-0

[Event "Late-Titled-Tuesday-Blitz-May-07-2024"]
[Site "Chess.com"]
[Date "2024.05.07"]
[Round "2"]
[White "Aryan_Tamadon"]
[Black "CombativeWombat"]
[Result "0-1"]
[WhiteElo "2537"]
[BlackElo "2356"]
[TimeControl "180+1"]
[EndTime "14:16:28 PDT"]
[Termination "CombativeWombat won by resignation"]

1. Nf3 {[%clk 0:03:00.9]} 1... Nf6 {[%clk 0:02:58.9]} 2. d3 {[%clk 0:03:00.7]}
2... d5 {[%clk 0:02:59.2]} 3. g3 {[%clk 0:02:56.4]} 3... Bg4 {[%clk 0:02:58.1]}
4. Bg2 {[%clk 0:02:56.9]} 4... Nbd7 {[%clk 0:02:58]} 5. O-O {[%clk 0:02:57.4]}
5... c6 {[%clk 0:02:58.4]} 6. c4 {[%clk 0:02:52.1]} 6... e6 {[%clk 0:02:58]} 7.
Nc3 {[%clk 0:02:52]} 7... Bd6 {[%clk 0:02:57.7]} 8. a3 {[%clk 0:02:52.1]} 8...
O-O {[%clk 0:02:54.4]} 9. Qc2 {[%clk 0:02:37.1]} 9... Re8 {[%clk 0:02:48.2]} 10.
b4 {[%clk 0:02:00]} 10... a5 {[%clk 0:02:47.5]} 11. c5 {[%clk 0:01:54.8]} 11...
Bf8 {[%clk 0:02:43.9]} 12. Bb2 {[%clk 0:01:55.3]} 12... b6 {[%clk 0:02:35.1]}
13. d4 {[%clk 0:01:23.5]} 13... Bf5 {[%clk 0:02:22.2]} 14. Qb3 {[%clk
0:01:23.5]} 14... Ne4 {[%clk 0:02:21.1]} 15. Nh4 {[%clk 0:01:20.3]} 15... Nd2
{[%clk 0:02:20.2]} 16. Qd1 {[%clk 0:01:19.2]} 16... Nxf1 {[%clk 0:02:09.8]} 17.
Nxf5 {[%clk 0:01:19.6]} 17... exf5 {[%clk 0:01:57.1]} 18. Bxf1 {[%clk
0:01:16.6]} 18... b5 {[%clk 0:01:53]} 19. Bg2 {[%clk 0:01:00.1]} 19... g6 {[%clk
0:01:49.9]} 20. h4 {[%clk 0:00:54]} 20... h5 {[%clk 0:01:49.1]} 21. Nb1 {[%clk
0:00:47.4]} 21... axb4 {[%clk 0:01:48.6]} 22. axb4 {[%clk 0:00:48.3]} 22... Rxa1
{[%clk 0:01:48.7]} 23. Bxa1 {[%clk 0:00:49.2]} 23... Qa8 {[%clk 0:01:46.5]} 24.
Bb2 {[%clk 0:00:45.8]} 24... Qa2 {[%clk 0:01:45.1]} 25. Qc1 {[%clk 0:00:39.5]}
25... Rxe2 {[%clk 0:01:41.4]} 26. Nc3 {[%clk 0:00:38.8]} 26... Qxb2 {[%clk
0:01:40.3]} 27. Nxe2 {[%clk 0:00:39.4]} 27... Qxe2 {[%clk 0:01:40]} 28. Qf4
{[%clk 0:00:34.4]} 28... Nf6 {[%clk 0:01:31.5]} 29. Bf3 {[%clk 0:00:17.2]} 29...
Qe1+ {[%clk 0:01:29.7]} 30. Kg2 {[%clk 0:00:17.1]} 30... Ne4 {[%clk 0:01:26.5]}
31. Bxe4 {[%clk 0:00:12.6]} 31... Qxe4+ {[%clk 0:01:26.6]} 32. f3 {[%clk
0:00:09.7]} 32... Qxf4 {[%clk 0:01:26.2]} 33. gxf4 {[%clk 0:00:10.6]} 33... Bg7
{[%clk 0:01:26.4]} 34. Kg3 {[%clk 0:00:06.7]} 34... Bxd4 {[%clk 0:01:26.5]} 35.
Kh3 {[%clk 0:00:07.6]} 35... Bc3 {[%clk 0:01:26.7]} 36. Kg2 {[%clk 0:00:08.5]}
36... Bxb4 {[%clk 0:01:26.3]} 37. Kg3 {[%clk 0:00:09.4]} 37... Bxc5 {[%clk
0:01:26.7]} 0-1

[Event "Late-Titled-Tuesday-Blitz-May-07-2024"]
[Site "Chess.com"]
[Date "2024.05.07"]
[Round "2"]
[White "Mischuk_D"]
[Black "Nicolik"]
[Result "1-0"]
[WhiteElo "2814"]
[BlackElo "2495"]
[TimeControl "180+1"]
[EndTime "14:16:35 PDT"]
[Termination "Mischuk_D won by resignation"]

1. d4 {[%clk 0:03:00.9]} 1... d5 {[%clk 0:03:00.3]} 2. c4 {[%clk 0:03:01]} 2...
c6 {[%clk 0:03:00.3]} 3. Nc3 {[%clk 0:02:59.5]} 3... Nf6 {[%clk 0:03:00.3]} 4.
e3 {[%clk 0:02:59.6]} 4... a6 {[%clk 0:02:56.3]} 5. Nf3 {[%clk 0:02:57.1]} 5...
Bf5 {[%clk 0:02:49.3]} 6. a4 {[%clk 0:02:46.2]} 6... e6 {[%clk 0:02:48.8]} 7.
Qb3 {[%clk 0:02:41.8]} 7... Ra7 {[%clk 0:02:46.1]} 8. Be2 {[%clk 0:02:39.9]}
8... Nbd7 {[%clk 0:02:45.9]} 9. O-O {[%clk 0:02:25.7]} 9... Bd6 {[%clk
0:02:45.8]} 10. a5 {[%clk 0:02:23.5]} 10... Ne4 {[%clk 0:02:37.5]} 11. Rd1
{[%clk 0:02:18.1]} 11... h5 {[%clk 0:02:36.3]} 12. Bd2 {[%clk 0:02:14.6]} 12...
g5 {[%clk 0:02:34.7]} 13. Nxe4 {[%clk 0:02:08]} 13... Bxe4 {[%clk 0:02:29.1]}
14. Bb4 {[%clk 0:02:04.9]} 14... Bc7 {[%clk 0:02:23.1]} 15. Nd2 {[%clk
0:02:02.4]} 15... Bg6 {[%clk 0:02:14.4]} 16. cxd5 {[%clk 0:02:01]} 16... exd5
{[%clk 0:02:12.1]} 17. Bd3 {[%clk 0:01:56.5]} 17... f5 {[%clk 0:01:51]} 18. Qc2
{[%clk 0:01:52]} 18... Qf6 {[%clk 0:01:47.7]} 19. Nf1 {[%clk 0:01:37.4]} 19...
h4 {[%clk 0:01:44.1]} 20. Re1 {[%clk 0:01:32.4]} 20... Kf7 {[%clk 0:01:43.5]}
21. Bc3 {[%clk 0:01:25.8]} 21... Raa8 {[%clk 0:01:38.6]} 22. f3 {[%clk
0:01:24.7]} 22... h3 {[%clk 0:01:29.8]} 23. g3 {[%clk 0:01:24]} 23... Kg7 {[%clk
0:00:26]} 24. Re2 {[%clk 0:01:17.1]} 24... Rhf8 {[%clk 0:00:19.6]} 25. Rae1
{[%clk 0:01:16.3]} 25... g4 {[%clk 0:00:20.3]} 26. e4 {[%clk 0:01:05.9]} 26...
gxf3 {[%clk 0:00:19.4]} 27. e5 {[%clk 0:01:06.1]} 27... Qe6 {[%clk 0:00:14.1]}
28. Rf2 {[%clk 0:01:06.2]} 28... f4 {[%clk 0:00:14.5]} 29. Rxf3 {[%clk 0:01:04]}
29... fxg3 {[%clk 0:00:14.3]} 30. Rxg3 {[%clk 0:01:04.2]} 30... Rfe8 {[%clk
0:00:04.5]} 31. Rxg6+ {[%clk 0:01:03.7]} 1-0

[Event "Late-Titled-Tuesday-Blitz-May-07-2024"]
[Site "Chess.com"]
[Date "2024.05.07"]
[Round "2"]
[White "dealshark"]
[Black "Nechitaylo_Nikita"]
[Result "1-0"]
[WhiteElo "2555"]
[BlackElo "2345"]
[TimeControl "180+1"]
[EndTime "14:16:35 PDT"]
[Termination "dealshark won on time"]

1. e4 {[%clk 0:03:00.9]} 1... c5 {[%clk 0:03:00.4]} 2. c3 {[%clk 0:03:00.8]}
2... Nf6 {[%clk 0:03:00.2]} 3. e5 {[%clk 0:03:01.4]} 3... Nd5 {[%clk 0:03:00.9]}
4. d4 {[%clk 0:03:02.3]} 4... d6 {[%clk 0:03:00.8]} 5. Nf3 {[%clk 0:03:01.6]}
5... cxd4 {[%clk 0:03:01.3]} 6. cxd4 {[%clk 0:03:01.9]} 6... e6 {[%clk
0:03:01.2]} 7. Bc4 {[%clk 0:02:59.6]} 7... Bd7 {[%clk 0:03:01.1]} 8. O-O {[%clk
0:02:58.4]} 8... Bc6 {[%clk 0:03:00.5]} 9. Qe2 {[%clk 0:02:57.1]} 9... Be7
{[%clk 0:03:00.1]} 10. Nc3 {[%clk 0:02:55.2]} 10... Nxc3 {[%clk 0:02:48]} 11.
bxc3 {[%clk 0:02:56.1]} 11... O-O {[%clk 0:02:48.1]} 12. Re1 {[%clk 0:02:54.5]}
12... Qc7 {[%clk 0:02:32.8]} 13. Bd3 {[%clk 0:02:53.7]} 13... h6 {[%clk
0:02:28.1]} 14. Bf4 {[%clk 0:02:44.5]} 14... Nd7 {[%clk 0:02:24]} 15. Rac1
{[%clk 0:02:42.1]} 15... dxe5 {[%clk 0:02:00.4]} 16. Nxe5 {[%clk 0:02:41.9]}
16... Bd6 {[%clk 0:01:54.1]} 17. Qg4 {[%clk 0:02:06.5]} 17... Nf6 {[%clk
0:01:28.5]} 18. Qh4 {[%clk 0:02:06.6]} 18... Nd5 {[%clk 0:00:51.2]} 19. Bxh6
{[%clk 0:02:04.3]} 19... gxh6 {[%clk 0:00:45.9]} 20. Qxh6 {[%clk 0:02:04]} 20...
f5 {[%clk 0:00:46.1]} 21. Qxe6+ {[%clk 0:01:58.2]} 21... Kg7 {[%clk 0:00:26]}
22. Qg6+ {[%clk 0:01:52.9]} 22... Kh8 {[%clk 0:00:25.7]} 23. Bxf5 {[%clk
0:01:53.4]} 23... Bxe5 {[%clk 0:00:08.4]} 24. Rxe5 {[%clk 0:01:48.9]} 24... Rf6
{[%clk 0:00:02.1]} 25. Qh5+ {[%clk 0:01:40.6]} 25... Kg8 {[%clk 0:00:02.7]} 26.
Be6+ {[%clk 0:01:33.7]} 26... Kf8 {[%clk 0:00:01.8]} 27. Qh8+ {[%clk 0:01:27.7]}
27... Ke7 {[%clk 0:00:02]} 28. Bxd5+ {[%clk 0:01:01.8]} 1-0

[Event "Late-Titled-Tuesday-Blitz-May-07-2024"]
[Site "Chess.com"]
[Date "2024.05.07"]
[Round "2"]
[White "Pingah9"]
[Black "prachiti01"]
[Result "0-1"]
[WhiteElo "2536"]
[BlackElo "2443"]
[TimeControl "180+1"]
[EndTime "14:16:35 PDT"]
[Termination "prachiti01 won by resignation"]

1. e4 {[%clk 0:03:00.9]} 1... e6 {[%clk 0:02:59.4]} 2. d3 {[%clk 0:03:00.9]}
2... d5 {[%clk 0:02:59.9]} 3. Nd2 {[%clk 0:03:01.8]} 3... c5 {[%clk 0:02:57.5]}
4. g3 {[%clk 0:03:01.6]} 4... Nc6 {[%clk 0:02:57.3]} 5. Bg2 {[%clk 0:03:02]}
5... Nf6 {[%clk 0:02:53.2]} 6. Ngf3 {[%clk 0:03:01.9]} 6... Be7 {[%clk
0:02:52.7]} 7. O-O {[%clk 0:03:01.4]} 7... O-O {[%clk 0:02:52.5]} 8. Re1 {[%clk
0:03:00.2]} 8... b5 {[%clk 0:02:50.9]} 9. e5 {[%clk 0:02:58.4]} 9... Nd7 {[%clk
0:02:50.2]} 10. Nf1 {[%clk 0:02:58.1]} 10... Qc7 {[%clk 0:02:42.2]} 11. Bf4
{[%clk 0:02:56.4]} 11... a5 {[%clk 0:02:40.2]} 12. h4 {[%clk 0:02:54.8]} 12...
Ba6 {[%clk 0:02:34]} 13. h5 {[%clk 0:02:53.5]} 13... b4 {[%clk 0:02:32.2]} 14.
N1h2 {[%clk 0:02:52.4]} 14... c4 {[%clk 0:02:27.5]} 15. d4 {[%clk 0:02:48]}
15... c3 {[%clk 0:02:23.8]} 16. b3 {[%clk 0:02:45.3]} 16... Nb6 {[%clk
0:02:14.9]} 17. Ng4 {[%clk 0:02:44.6]} 17... a4 {[%clk 0:02:14.3]} 18. Bf1
{[%clk 0:02:22.5]} 18... Bxf1 {[%clk 0:02:10.6]} 19. Rxf1 {[%clk 0:02:23.4]}
19... axb3 {[%clk 0:02:10.3]} 20. axb3 {[%clk 0:02:23.5]} 20... Rxa1 {[%clk
0:02:09.7]} 21. Qxa1 {[%clk 0:02:24.4]} 21... Ra8 {[%clk 0:02:09.3]} 22. Qd1
{[%clk 0:02:24.4]} 22... Ra2 {[%clk 0:02:07.7]} 23. Qd3 {[%clk 0:02:20.6]} 23...
Nd7 {[%clk 0:01:55.7]} 24. Ng5 {[%clk 0:01:55.8]} 24... Bxg5 {[%clk 0:01:54.2]}
25. Bxg5 {[%clk 0:01:56.1]} 25... h6 {[%clk 0:01:40]} 26. Bf4 {[%clk 0:01:47.9]}
26... Ne7 {[%clk 0:01:37.4]} 27. Nf6+ {[%clk 0:01:40.4]} 27... gxf6 {[%clk
0:01:23.2]} 28. exf6 {[%clk 0:01:41.3]} 28... Qd8 {[%clk 0:01:18.5]} 29. fxe7
{[%clk 0:01:38.1]} 29... Qxe7 {[%clk 0:01:19.4]} 30. Bxh6 {[%clk 0:01:36.1]}
30... Qf6 {[%clk 0:01:16.2]} 31. Bf4 {[%clk 0:01:32.7]} 31... Qf5 {[%clk
0:01:10.7]} 32. Qb5 {[%clk 0:01:29.2]} 32... Nf6 {[%clk 0:01:08.3]} 33. Qxb4
{[%clk 0:01:25.6]} 33... Rxc2 {[%clk 0:01:07.3]} 34. Qb8+ {[%clk 0:01:24.1]}
34... Kh7 {[%clk 0:01:06.3]} 35. Qf8 {[%clk 0:01:18]} 35... Ng4 {[%clk
0:00:54.7]} 36. f3 {[%clk 0:00:52.7]} 36... Qxh5 {[%clk 0:00:54.1]} 0-1

[Event "Late-Titled-Tuesday-Blitz-May-07-2024"]
[Site "Chess.com"]
[Date "2024.05.07"]
[Round "2"]
[White "klimkoj"]
[Black "arenal72"]
[Result "1-0"]
[WhiteElo "2942"]
[BlackElo "2624"]
[TimeControl "180+1"]
[EndTime "14:16:38 PDT"]
[Termination "klimkoj won by resignation"]

1. e4 {[%clk 0:03:00.9]} 1... e6 {[%clk 0:02:59]} 2. d4 {[%clk 0:02:59.6]} 2...
d5 {[%clk 0:02:59.6]} 3. Nc3 {[%clk 0:02:59.8]} 3... Nf6 {[%clk 0:02:59.7]} 4.
e5 {[%clk 0:02:58.5]} 4... Nfd7 {[%clk 0:02:59.5]} 5. f4 {[%clk 0:02:59.4]} 5...
c5 {[%clk 0:02:57.1]} 6. Nf3 {[%clk 0:02:59.6]} 6... Nc6 {[%clk 0:02:51.4]} 7.
Be3 {[%clk 0:02:59.8]} 7... Be7 {[%clk 0:02:48.8]} 8. Qd2 {[%clk 0:02:59.9]}
8... O-O {[%clk 0:02:35.2]} 9. a3 {[%clk 0:02:56.9]} 9... b6 {[%clk 0:02:31.7]}
10. Be2 {[%clk 0:02:43.9]} 10... a5 {[%clk 0:02:13.2]} 11. O-O {[%clk
0:02:41.9]} 11... f5 {[%clk 0:02:06.4]} 12. Nb5 {[%clk 0:02:28.8]} 12... Ba6
{[%clk 0:01:56.7]} 13. c4 {[%clk 0:02:26.5]} 13... Bxb5 {[%clk 0:01:42.4]} 14.
cxb5 {[%clk 0:02:27.4]} 14... Nxd4 {[%clk 0:01:42.1]} 15. Bxd4 {[%clk
0:02:19.7]} 15... cxd4 {[%clk 0:01:40.6]} 16. Kh1 {[%clk 0:02:11.5]} 16... a4
{[%clk 0:01:21.5]} 17. Nxd4 {[%clk 0:02:09.7]} 17... Nc5 {[%clk 0:01:21.4]} 18.
Rac1 {[%clk 0:02:02.6]} 18... Qd7 {[%clk 0:01:20.3]} 19. Qe3 {[%clk 0:01:56.4]}
19... Rfc8 {[%clk 0:01:12.6]} 20. Nc6 {[%clk 0:01:56.5]} 20... Nb3 {[%clk
0:00:53.7]} 21. Rcd1 {[%clk 0:01:50.6]} 21... Bc5 {[%clk 0:00:51.4]} 22. Qh3
{[%clk 0:01:45.7]} 22... Na5 {[%clk 0:00:49.4]} 23. g4 {[%clk 0:01:31.3]} 23...
Nxc6 {[%clk 0:00:19.5]} 24. bxc6 {[%clk 0:01:32.2]} 24... Qxc6 {[%clk
0:00:19.7]} 25. gxf5 {[%clk 0:01:32]} 25... exf5 {[%clk 0:00:20.4]} 26. Qxf5
{[%clk 0:01:32.1]} 26... Rf8 {[%clk 0:00:20.4]} 27. Qg4 {[%clk 0:01:26.3]} 27...
Rad8 {[%clk 0:00:17.9]} 28. f5 {[%clk 0:01:22.6]} 28... d4+ {[%clk 0:00:12.8]}
29. Bf3 {[%clk 0:01:23]} 29... Qe8 {[%clk 0:00:12.8]} 30. f6 {[%clk 0:01:11.5]}
30... Qg6 {[%clk 0:00:11.8]} 31. Rg1 {[%clk 0:01:05.4]} 31... gxf6 {[%clk
0:00:09.5]} 32. Qe6+ {[%clk 0:01:04.1]} 1-0

[Event "Late-Titled-Tuesday-Blitz-May-07-2024"]
[Site "Chess.com"]
[Date "2024.05.07"]
[Round "2"]
[White "ToddBryant"]
[Black "LikeWater"]
[Result "0-1"]
[WhiteElo "2385"]
[BlackElo "2676"]
[TimeControl "180+1"]
[EndTime "14:16:43 PDT"]
[Termination "LikeWater won by resignation"]

1. e4 {[%clk 0:03:00.9]} 1... e5 {[%clk 0:02:55.7]} 2. f4 {[%clk 0:03:00.1]}
2... d5 {[%clk 0:02:53.1]} 3. exd5 {[%clk 0:03:00.2]} 3... exf4 {[%clk
0:02:53.5]} 4. Nf3 {[%clk 0:03:00.5]} 4... Nf6 {[%clk 0:02:53.7]} 5. Nc3 {[%clk
0:03:01.2]} 5... c6 {[%clk 0:02:48.2]} 6. d4 {[%clk 0:03:00.5]} 6... Bd6 {[%clk
0:02:44.4]} 7. Bc4 {[%clk 0:03:00.1]} 7... O-O {[%clk 0:02:32.4]} 8. dxc6 {[%clk
0:03:00.4]} 8... Nxc6 {[%clk 0:02:30]} 9. O-O {[%clk 0:03:01.1]} 9... Bg4 {[%clk
0:02:28.7]} 10. Ne2 {[%clk 0:02:56.1]} 10... Qc7 {[%clk 0:02:19.1]} 11. Bd3
{[%clk 0:02:45.5]} 11... Rfe8 {[%clk 0:02:06.1]} 12. c3 {[%clk 0:02:42.1]} 12...
Ne7 {[%clk 0:01:58.5]} 13. Qb3 {[%clk 0:02:17]} 13... Ned5 {[%clk 0:01:54.2]}
14. c4 {[%clk 0:02:06.2]} 14... Ne3 {[%clk 0:01:54.3]} 15. Bxe3 {[%clk
0:01:56.6]} 15... Rxe3 {[%clk 0:01:54]} 16. c5 {[%clk 0:01:49.3]} 16... Bf8
{[%clk 0:01:28.9]} 17. Rae1 {[%clk 0:01:28.5]} 17... Rae8 {[%clk 0:01:28.1]} 18.
Ne5 {[%clk 0:01:21.2]} 18... Bxc5 {[%clk 0:00:55.4]} 19. Rxf4 {[%clk 0:00:44.6]}
19... R8xe5 {[%clk 0:00:47.6]} 20. Kh1 {[%clk 0:00:26.8]} 20... Re8 {[%clk
0:00:38.3]} 21. dxc5 {[%clk 0:00:20.1]} 21... Qxf4 {[%clk 0:00:37.3]} 22. Bxh7+
{[%clk 0:00:05.8]} 22... Nxh7 {[%clk 0:00:35]} 0-1

[Event "Late-Titled-Tuesday-Blitz-May-07-2024"]
[Site "Chess.com"]
[Date "2024.05.07"]
[Round "2"]
[White "Iuckyducky"]
[Black "betta2004"]
[Result "1-0"]
[WhiteElo "2246"]
[BlackElo "2503"]
[TimeControl "180+1"]
[EndTime "14:16:48 PDT"]
[Termination "Iuckyducky won by resignation"]

1. e4 {[%clk 0:02:55]} 1... e5 {[%clk 0:02:59.7]} 2. Nf3 {[%clk 0:02:55.4]} 2...
Nf6 {[%clk 0:02:57.3]} 3. Nc3 {[%clk 0:02:52.8]} 3... Bc5 {[%clk 0:02:56.7]} 4.
Bc4 {[%clk 0:02:52.8]} 4... d6 {[%clk 0:02:55.2]} 5. h3 {[%clk 0:02:49.2]} 5...
O-O {[%clk 0:02:54.7]} 6. O-O {[%clk 0:02:47.8]} 6... c6 {[%clk 0:02:54.6]} 7.
d3 {[%clk 0:02:47.5]} 7... Re8 {[%clk 0:02:54.6]} 8. Bg5 {[%clk 0:02:46.6]} 8...
Nbd7 {[%clk 0:02:54.8]} 9. Na4 {[%clk 0:02:44.9]} 9... Bb4 {[%clk 0:02:54.5]}
10. Bb3 {[%clk 0:02:36.3]} 10... Nf8 {[%clk 0:02:52.8]} 11. Nh4 {[%clk
0:02:17.5]} 11... h6 {[%clk 0:02:50.8]} 12. Be3 {[%clk 0:02:17.5]} 12... d5
{[%clk 0:02:47.7]} 13. c3 {[%clk 0:00:58.8]} 13... Ba5 {[%clk 0:02:32.2]} 14.
exd5 {[%clk 0:00:58.5]} 14... Nxd5 {[%clk 0:02:31.1]} 15. Nf3 {[%clk 0:00:53.4]}
15... Ng6 {[%clk 0:02:23.8]} 16. Nc5 {[%clk 0:00:48.1]} 16... Bb6 {[%clk
0:02:13]} 17. d4 {[%clk 0:00:36.6]} 17... Nxe3 {[%clk 0:02:07.7]} 18. fxe3
{[%clk 0:00:37.5]} 18... exd4 {[%clk 0:01:54]} 19. exd4 {[%clk 0:00:37.8]} 19...
Rf8 {[%clk 0:01:38.7]} 20. Nd3 {[%clk 0:00:33]} 20... Bc7 {[%clk 0:01:34.9]} 21.
Qe2 {[%clk 0:00:30.6]} 21... Bf5 {[%clk 0:01:27.2]} 22. Nde5 {[%clk 0:00:30.5]}
22... Nxe5 {[%clk 0:01:22.8]} 23. Nxe5 {[%clk 0:00:30.7]} 23... Bxe5 {[%clk
0:01:22.9]} 24. Qxe5 {[%clk 0:00:30.8]} 24... Bg6 {[%clk 0:01:23.4]} 25. Qg3
{[%clk 0:00:25.2]} 25... Kh7 {[%clk 0:01:21.2]} 26. h4 {[%clk 0:00:23.9]} 26...
Qa5 {[%clk 0:01:17.9]} 27. Rae1 {[%clk 0:00:21.2]} 27... c5 {[%clk 0:01:07]} 28.
Re5 {[%clk 0:00:16.9]} 28... b6 {[%clk 0:01:03.1]} 29. h5 {[%clk 0:00:16.7]}
29... Rae8 {[%clk 0:00:47.9]} 30. hxg6+ {[%clk 0:00:16.4]} 30... fxg6 {[%clk
0:00:48.7]} 31. Rxe8 {[%clk 0:00:11.9]} 31... Rxe8 {[%clk 0:00:49.6]} 32. Bc2
{[%clk 0:00:12.2]} 32... Re6 {[%clk 0:00:49.2]} 33. d5 {[%clk 0:00:11.6]} 33...
Re2 {[%clk 0:00:46.7]} 34. Qxg6+ {[%clk 0:00:11.3]} 1-0